bitfinex-derivatives/quotes_ETHF0:USTF0_20250911
["timestamp","ask_amount","ask_price","bid_price","bid_amount"]
[1757586934859,0.7201,4425.9,4425.8,0.0949]
[1757586935260,1.29607124,4425.9,4425.8,0.0949]
[1757586942272,1.29607124,4425.9,4425.8,0.2929]
[1757586943371,1.29607124,4425.9,4425.8,0.0949]
[1757586944071,0.6882,4425.1,4425.0,8.84]
[1757586944274,0.9152,4425.1,4425.0,8.84]
[1757586946579,0.9152,4425.1,4425.0,9.038]
[1757586947076,0.9152,4425.1,4425.0,8.84]
[1757586947271,0.9152,4425.1,4425.0,9.038]
[1757586948076,0.9152,4425.1,4425.0,9.5347]
[1757586948473,0.9152,4425.1,4425.0,9.2348]
[1757586950176,0.9152,4425.1,4425.0,8.84]
[1757586950379,5.14119,4425.1,4424.0,0.1235]
[1757586950577,3.2078,4424.7,4424.1,0.2999]
[1757586950776,3.2078,4424.2,4424.0,0.1235]
[1757586950982,0.227,4424.1,4423.8,0.2999]
[1757586951274,0.227,4424.1,4423.7,0.198]
[1757586951575,0.227,4424.1,4423.5,0.105]
[1757586951576,0.227,4424.1,4423.5,0.303]
[1757586951776,0.227,4424.1,4423.6,0.2999]
[1757586951978,0.227,4424.1,4423.5,0.303]
[1757586952173,0.227,4424.1,4423.6,0.2999]
[1757586952680,0.227,4424.1,4423.6,0.198]
[1757586952882,0.227,4424.1,4423.5,0.303]
[1757586953077,0.227,4424.1,4423.7,0.2999]
[1757586953278,0.227,4424.1,4423.5,0.105]
[1757586953478,0.227,4424.1,4423.5,0.303]
[1757586953673,0.227,4424.1,4423.6,0.2999]
[1757586953874,0.227,4424.1,4423.5,0.303]
[1757586954175,0.227,4424.1,4423.5,0.105]
[1757586954382,3.2078,4423.7,4423.5,0.105]
[1757586954585,3.2078,4423.7,4423.6,0.2999]
[1757586954784,3.4358,4423.7,4423.6,0.2999]
[1757586957185,3.4358,4423.7,4423.6,0.4979]
[1757586957986,3.4358,4423.7,4423.6,0.7115]
[1757586961287,3.4358,4423.7,4423.5,0.105]
[1757586961583,3.4358,4423.7,4423.1,0.5294]
[1757586961785,3.4358,4423.7,4423.1,0.3181]
[1757586962090,3.2078,4423.2,4422.5,0.3348]
[1757586962289,0.228,4423.1,4423.0,0.118]
[1757586962478,0.228,4423.1,4423.0,0.6474]
[1757586963282,0.228,4423.1,4423.0,0.4361]
[1757586966588,3.2078,4423.2,4423.0,0.3293]
[1757586966788,3.2078,4423.2,4423.1,0.743]
[1757586966990,3.4358,4423.2,4423.1,0.743]
[1757586967792,3.2078,4423.2,4423.1,0.743]
[1757586967995,3.4358,4423.2,4423.1,0.743]
[1757586968894,3.3358,4423.2,4423.1,0.743]
[1757586970196,3.1078,4423.2,4423.1,0.743]
[1757586970495,3.3358,4423.2,4423.1,0.743]
[1757586971290,3.3358,4423.2,4423.1,0.3181]
[1757586972395,3.3358,4423.2,4423.1,0.743]
[1757586973098,3.1078,4423.2,4423.1,0.743]
[1757586973294,3.3358,4423.2,4423.1,0.743]
[1757586977100,3.1078,4423.2,4423.1,0.743]
[1757586977307,3.3358,4423.2,4423.1,0.743]
[1757586979510,0.228,4423.2,4423.1,0.743]
[1757586981006,0.228,4423.2,4423.1,0.3181]
[1757586981307,0.228,4423.2,4423.1,0.5294]
[1757586981614,0.228,4423.2,4423.1,0.743]
[1757586983411,3.2078,4423.7,4423.1,0.743]
[1757586983618,0.80747394,4423.6,4423.5,0.6474]
[1757586985218,0.80747394,4423.6,4423.5,0.861]
[1757586992623,3.2078,4423.7,4423.5,0.5429]
[1757586992924,0.228,4423.6,4423.5,0.8633]
[1757586997524,3.2078,4423.7,4423.5,0.5429]
[1757586997732,0.228,4423.6,4423.5,0.8633]
[1757587012138,3.2078,4423.7,4423.6,0.3204]
[1757587012445,4.01336668,4423.7,4423.6,0.727]
[1757587013735,4.01336668,4423.7,4423.6,0.3204]
[1757587014538,4.01336668,4423.7,4423.6,0.727]
[1757587015137,3.78536668,4423.7,4423.6,0.727]
[1757587015325,3.2078,4423.7,4423.6,0.727]
[1757587015530,3.2078,4424.3,4423.6,4.4066]
[1757587015740,3.2078,4424.3,4424.2,0.727]
[1757587015943,4.01335364,4424.3,4424.2,0.727]
[1757587016234,0.57755364,4424.3,4424.2,0.727]
[1757587016441,32.565,4424.6,4424.5,0.8527]
[1757587016739,33.505,4424.6,4424.5,0.727]
[1757587018361,32.793,4424.6,4424.5,0.8511]
[1757587018640,32.9961,4424.6,4424.5,0.8511]
[1757587018939,33.3116,4424.6,4424.5,0.8511]
[1757587019131,32.793,4424.6,4424.5,0.8511]
[1757587020948,0.3155,4424.9,4424.5,0.5307]
[1757587021241,0.5186,4425.3,4425.2,0.7343]
[1757587021439,0.9534,4425.3,4425.2,0.7343]
[1757587022633,0.2031,4425.6,4425.5,0.8584]
[1757587022839,3.5233,4425.9,4425.6,0.3177]
[1757587023060,0.227,4425.8,4425.7,0.4166]
[1757587023344,3.5233,4425.9,4425.7,0.7343]
[1757587023546,0.7254,4426.3,4426.2,0.4166]
[1757587023749,0.9524,4426.3,4426.2,0.7343]
[1757587025147,0.7254,4426.3,4426.2,0.7343]
[1757587025348,0.9524,4426.3,4426.2,0.7343]
[1757587026247,0.4301,4426.3,4426.2,0.7343]
[1757587026440,0.227,4426.3,4426.2,0.7343]
[1757587027149,0.227,4426.3,4426.2,0.4166]
[1757587027644,0.3155,4427.0,4426.2,4.64251999]
[1757587027845,3.7264,4427.3,4427.2,0.7343]
[1757587028049,0.227,4427.3,4427.2,0.4166]
[1757587028741,0.227,4427.3,4427.2,0.7343]
[1757587029143,0.3155,4427.7,4427.2,0.4166]
[1757587029348,0.3155,4428.4,4427.7,0.3177]
[1757587029652,0.7254,4428.2,4428.1,0.2135]
[1757587030255,0.7254,4428.2,4427.9,0.3177]
[1757587030443,0.844,4428.0,4427.9,0.5312]
[1757587030752,1.071,4428.0,4427.9,0.5312]
[1757587039652,0.7254,4427.2,4427.1,3.2078]
[1757587039852,0.7254,4427.1,4427.0,1.0]
[1757587042161,4.7254,4427.1,4427.0,1.0]
[1757587042353,4.63578,4427.1,4426.2,0.3177]
[1757587042658,3.2078,4426.4,4426.2,0.3177]
[1757587042861,0.227,4426.3,4426.2,0.5312]
[1757587044754,0.227,4426.3,4426.2,0.3177]
[1757587044956,4.227,4426.3,4426.0,0.4418]
[1757587045357,0.79637434,4426.2,4426.0,0.4418]
[1757587045557,0.57044433,4426.1,4426.0,0.4418]
[1757587046159,0.57044433,4426.2,4426.0,0.4418]
[1757587046361,0.57044433,4426.1,4426.0,0.4418]
[1757587046758,0.57044433,4426.2,4426.1,0.3177]
[1757587046963,0.5710347,4426.2,4426.1,0.3177]
[1757587048662,0.5710347,4426.2,4426.1,0.5312]
[1757587057269,0.227,4426.3,4426.1,0.2135]
[1757587057460,0.227,4426.3,4426.2,0.5241]
[1757587057661,0.79830162,4426.3,4426.2,0.5241]
[1757587060274,0.79830162,4426.3,4426.2,0.7316]
[1757587060576,3.2078,4426.4,4426.2,0.7316]
[1757587060759,0.227,4426.3,4426.2,0.7316]
[1757587061070,0.227,4426.3,4426.2,0.3117]
[1757587062662,0.227,4426.3,4426.2,0.5241]
[1757587063059,0.227,4426.3,4426.2,0.7316]
[1757587066276,0.227,4426.3,4426.2,1.00688705]
[1757587067762,3.2078,4426.4,4426.2,0.69518705]
[1757587067965,3.2078,4426.4,4426.3,1.00688705]
[1757587068277,4.00929795,4426.4,4426.3,1.00688705]
[1757587068465,3.4348,4426.4,4426.3,1.00688705]
[1757587069271,4.00979398,4426.4,4426.3,1.00688705]
[1757587069669,3.78279398,4426.4,4426.3,1.00688705]
[1757587069869,4.01079398,4426.4,4426.3,1.00688705]
[1757587070370,3.78279398,4426.4,4426.3,1.00688705]
[1757587070574,4.01079398,4426.4,4426.3,1.00688705]
[1757587072767,4.00979398,4426.4,4426.3,1.00688705]
[1757587074069,3.78279398,4426.4,4426.3,1.00688705]
[1757587074270,4.00979398,4426.4,4426.3,1.00688705]
[1757587074772,4.00979398,4426.4,4426.3,0.58698705]
[1757587074980,4.00979398,4426.4,4426.0,0.3365]
[1757587075276,0.57499398,4426.3,4426.0,0.1241]
[1757587075469,0.227,4426.2,4426.0,0.1241]
[1757587075668,0.57499398,4426.1,4426.0,0.1241]
[1757587075970,0.57499398,4426.1,4426.0,0.3365]
[1757587076171,0.227,4426.2,4426.0,0.3365]
[1757587076372,0.227,4426.2,4426.0,0.1241]
[1757587076373,0.57596837,4426.1,4426.0,0.1241]
[1757587076677,0.57596837,4426.1,4425.5,0.3365]
[1757587076865,3.2078,4425.6,4425.5,0.6482]
[1757587077069,4.01176837,4425.6,4425.5,0.6482]
[1757587077474,4.01176837,4425.6,4424.2,3.2078]
[1757587077775,4.01176837,4425.6,4425.0,0.431]
[1757587077776,3.2078,4425.1,4425.0,0.431]
[1757587077978,4.01176837,4425.1,4425.0,0.431]
[1757587078278,4.01176837,4425.1,4425.0,0.6291]
[1757587079175,4.01176837,4425.1,4425.0,0.431]
[1757587079373,4.01176837,4425.1,4424.0,0.1203]
[1757587079676,3.2078,4424.6,4424.0,0.1203]
[1757587079878,4.01176837,4424.6,4424.0,0.1203]
[1757587080074,4.01176837,4424.6,4424.5,0.431]
[1757587080268,4.01176837,4424.6,4424.5,0.6291]
[1757587080473,4.01176837,4424.6,4424.5,0.431]
[1757587083081,4.01176837,4424.6,4424.5,0.6291]
[1757587083681,4.01176837,4424.6,4424.5,0.8314]
[1757587084479,3.4358,4424.6,4424.5,0.8314]
[1757587086379,3.2078,4424.6,4424.5,0.8314]
[1757587086579,0.228,4424.6,4424.5,5.05741]
[1757587086883,0.228,4424.6,4424.5,4.8314]
[1757587087876,3.2078,4425.4,4425.0,0.1279]
[1757587088185,3.2078,4425.4,4425.3,0.7073]
[1757587088373,3.4358,4425.4,4425.3,0.7073]
[1757587094583,3.2078,4425.4,4425.3,0.7073]
[1757587094788,3.4358,4425.4,4425.3,0.3069]
[1757587095679,3.4358,4425.4,4424.6,0.3069]
[1757587095874,3.4358,4425.4,4424.6,0.1443]
[1757587095875,3.7059,4424.7,4424.6,0.1443]
[1757587096088,3.9339,4424.7,4424.0,0.1203]
[1757587097198,0.4981,4424.1,4423.1,3.2078]
[1757587097490,0.3796,4423.6,4423.5,0.326]
[1757587097790,0.7261,4423.6,4423.5,0.4348]
[1757587098886,0.6076,4423.6,4423.5,0.6329]
[1757587100788,0.6076,4423.6,4423.5,0.8352]
[1757587101388,0.1898,4423.6,4423.5,0.8352]
[1757587101594,3.3976,4424.2,4424.1,0.7073]
[1757587101798,3.8154,4424.2,4424.1,0.7073]
[1757587103297,4.39535447,4424.2,4424.1,0.7073]
[1757587106299,4.51385447,4424.2,4424.1,0.3069]
[1757587106497,4.51385447,4424.2,4423.5,0.1279]
[1757587106794,3.5874,4423.6,4423.5,0.5283]
[1757587106993,3.8154,4423.6,4423.5,0.5283]
[1757587107296,3.8154,4423.6,4423.5,0.8352]
[1757587107589,3.9341,4423.6,4423.5,0.3069]
[1757587108191,3.9341,4423.6,4423.5,0.4256]
[1757587109495,3.8154,4423.6,4423.0,0.1279]
[1757587109797,0.3798,4423.2,4423.1,0.3074]
[1757587109997,0.6078,4423.2,4423.1,0.7063]
[1757587110584,0.4179,4423.2,4423.1,0.7063]
[1757587112497,0.6439,4423.2,4423.1,0.7063]
[1757587113100,0.6439,4423.2,4423.1,0.5094]
[1757587113101,0.9525,4423.2,4423.1,0.5094]
[1757587113493,0.9525,4423.2,4423.1,0.3074]
[1757587113895,0.9525,4423.2,4422.6,0.3074]
[1757587114092,0.3798,4422.7,4422.6,0.5094]
[1757587114292,0.7265,4422.7,4422.6,0.5094]
[1757587115993,3.2078,4423.0,4422.7,0.3074]
[1757587116196,3.2078,4423.0,4422.9,0.3074]
[1757587116395,3.4358,4423.0,4422.9,0.7063]
[1757587117299,3.6257,4423.0,4422.9,0.7063]
[1757587119503,3.9343,4423.0,4422.9,0.5094]
[1757587119696,3.8156,4423.0,4422.9,0.7063]
[1757587121100,3.8156,4423.0,4422.6,0.3074]
[1757587121300,0.38,4422.6,4422.5,0.3299]
[1757587121604,0.608,4422.6,4422.5,0.3299]
[1757587121806,0.608,4422.6,4422.5,0.6373]
[1757587124603,0.608,4422.6,4420.8,0.228]
[1757587124604,0.1188,4422.5,4421.6,0.3074]
[1757587124803,0.4988,4421.7,4421.6,0.3074]
[1757587125004,0.7268,4421.7,4421.6,0.3074]
[1757587126610,0.8341,4421.7,4421.6,0.5094]
[1757587126809,0.8341,4421.7,4421.6,0.7063]
[1757587132508,0.6061,4421.7,4421.6,0.7063]
[1757587132717,0.8341,4421.7,4421.6,0.7063]
[1757587136318,0.6061,4421.7,4421.6,0.7063]
[1757587136522,0.6441,4421.7,4421.6,0.7063]
[1757587137420,0.8341,4421.7,4421.6,0.7063]
[1757587140921,0.6441,4421.7,4421.6,0.7063]
[1757587141923,0.4161,4421.7,4421.6,0.7063]
[1757587142124,0.4541,4421.7,4421.6,0.7063]
[1757587143923,0.6442,4421.7,4421.6,0.7063]
[1757587144426,0.4541,4421.7,4421.6,0.7063]
[1757587149025,0.2261,4421.7,4421.6,4.7063]
[1757587149225,3.4093,4423.1,4423.0,0.1249]
[1757587149432,4.41978242,4423.1,4423.0,0.8355]
[1757587149824,4.71708242,4423.1,4423.0,0.8355]
[1757587151725,4.71708242,4423.1,4423.0,0.2908]
[1757587152027,0.6943,4422.3,4422.0,0.1249]
[1757587152326,0.6943,4422.1,4422.0,0.2908]
[1757587152526,0.9223,4422.1,4422.0,0.2908]
[1757587152830,0.9223,4422.1,4422.0,0.5048]
[1757587155029,0.625,4422.1,4422.0,0.8355]
[1757587155421,0.4295,4422.1,4422.0,0.8355]
[1757587159228,3.5051,4422.5,4422.0,0.8355]
[1757587159229,3.5051,4422.5,4422.0,0.5447]
[1757587159436,0.625,4422.4,4422.3,0.7106]
[1757587159829,0.4295,4422.4,4422.3,0.7106]
[1757587160333,0.228,4422.4,4422.3,0.7106]
[1757587162936,0.2261,4422.7,4422.3,0.7106]
[1757587163244,0.2261,4422.7,4422.6,0.7106]
[1757587163543,0.8511,4422.7,4422.6,0.7106]
[1757587163746,1.1484,4422.7,4422.6,0.7106]
[1757587163936,1.1484,4422.7,4422.1,0.2908]
[1757587164130,0.397,4422.2,4422.1,0.5048]
[1757587164439,0.9223,4422.2,4422.1,0.7106]
[1757587164637,0.625,4422.2,4422.1,0.7106]
[1757587165732,0.9223,4422.2,4422.1,0.7106]
[1757587165933,0.9223,4422.2,4422.1,0.2908]
[1757587166140,0.9223,4422.2,4421.6,0.2908]
[1757587166534,3.2078,4422.5,4422.2,0.2908]
[1757587166729,3.2078,4422.5,4422.0,0.1249]
[1757587166730,0.228,4422.4,4422.3,0.7106]
[1757587167039,0.4276,4422.7,4422.6,0.7106]
[1757587167235,0.4295,4422.7,4422.6,0.7106]
[1757587167437,1.21126906,4422.7,4422.6,0.7106]
[1757587167734,0.98326906,4422.7,4422.6,0.7106]
[1757587167930,0.625,4422.7,4422.6,0.7106]
[1757587168134,0.397,4422.7,4422.6,0.7106]
[1757587168335,0.625,4422.7,4422.6,0.7106]
[1757587168540,3.2078,4423.0,4422.6,0.7106]
[1757587168837,0.226,4423.0,4422.9,0.7063]
[1757587169043,0.454,4423.0,4422.9,0.7063]
[1757587169343,0.6566,4423.0,4422.9,0.7063]
[1757587169543,0.4306,4423.0,4422.9,0.7063]
[1757587170145,0.228,4423.0,4422.9,0.7063]
[1757587170643,0.4306,4423.0,4422.9,0.7063]
[1757587174746,0.228,4423.0,4422.9,0.7063]
[1757587175046,32.576,4423.1,4423.0,0.8351]
[1757587175346,32.804,4423.1,4423.0,0.8351]
[1757587178963,33.0066,4423.1,4423.0,0.8351]
[1757587179859,32.804,4423.1,4423.0,0.8351]
[1757587180459,33.0066,4423.1,4423.0,0.8351]
[1757587180961,33.5311,4423.1,4423.0,0.3036]
[1757587181155,0.7271,4422.6,4422.5,0.3036]
[1757587181356,0.9551,4422.6,4422.5,0.634]
[1757587181560,0.9551,4422.6,4422.5,0.8351]
[1757587182051,0.6449,4422.6,4422.5,0.8351]
[1757587184767,0.4306,4422.6,4422.5,0.8351]
[1757587185068,0.228,4422.6,4422.5,0.8351]
[1757587186464,0.4306,4422.6,4422.5,0.8351]
[1757587186664,0.9551,4422.6,4422.5,0.3036]
[1757587187169,0.9551,4422.6,4422.5,0.5052]
[1757587190266,0.9551,4422.6,4422.5,0.3036]
[1757587190465,0.9551,4422.6,4422.5,0.5052]
[1757587190870,0.9551,4422.6,4422.5,0.3036]
[1757587191378,0.9551,4422.6,4422.1,0.3036]
[1757587191674,0.7271,4422.5,4422.4,0.2016]
[1757587191865,0.7271,4422.5,4422.4,0.5052]
[1757587192064,0.7271,4422.5,4422.4,0.7063]
[1757587200680,0.4169,4422.5,4422.4,0.7063]
[1757587201176,0.228,4422.6,4422.5,0.4331]
[1757587201477,0.2261,4422.8,4422.7,0.7373]
[1757587201478,0.4541,4422.8,4422.7,0.7373]
[1757587201678,0.228,4422.8,4422.7,0.7373]
[1757587202479,0.4283,4422.8,4422.7,0.7373]
[1757587203382,0.228,4422.8,4422.7,0.7373]
[1757587203677,0.454,4422.9,4422.8,0.3083]
[1757587203877,0.228,4422.9,4422.8,0.7373]
[1757587205281,0.4283,4422.9,4422.8,0.7373]
[1757587208583,0.6362,4422.9,4422.8,0.7373]
[1757587208882,0.928,4422.9,4422.8,0.7373]
[1757587209087,0.6362,4422.9,4422.8,0.7373]
[1757587214082,0.4283,4422.9,4422.8,0.7373]
[1757587214481,0.226,4423.0,4422.9,0.3083]
[1757587214670,3.2078,4423.5,4422.9,0.7373]
[1757587214876,3.2078,4423.5,4423.4,0.7373]
[1757587215081,3.4358,4423.5,4423.4,0.7373]
[1757587216378,0.228,4423.5,4423.4,0.7373]
[1757587216778,0.928,4423.5,4423.4,0.7373]
[1757587216988,1.0472,4423.5,4423.0,3.3326]
[1757587217176,0.7,4423.2,4423.1,0.3083]
[1757587217486,0.928,4423.2,4423.1,0.5234]
[1757587217684,0.928,4423.2,4423.1,0.7373]
[1757587218887,0.2918,4423.6,4423.2,0.3083]
[1757587219078,0.228,4423.5,4423.2,0.3083]
[1757587219280,0.228,4423.5,4423.4,0.7373]
[1757587219573,3.2078,4423.7,4423.6,0.7373]
[1757587219782,3.4358,4423.7,4423.6,0.7373]
[1757587219979,3.6361,4423.7,4423.6,0.7373]
[1757587221477,3.9279,4423.7,4423.6,0.7373]
[1757587221879,3.6361,4423.7,4423.6,0.7373]
[1757587222975,4.1358,4423.7,4423.6,0.7373]
[1757587224382,3.2078,4424.7,4423.6,0.429]
[1757587224588,3.2078,4424.7,4424.6,0.3083]
[1757587224888,3.4358,4424.7,4424.6,0.7373]
[1757587225584,3.2078,4424.7,4424.6,0.7373]
[1757587227592,3.4081,4424.7,4424.6,0.7373]
[1757587227892,0.2003,4424.7,4424.6,3.9451]
[1757587228093,0.2003,4424.7,4424.6,0.7373]
[1757587228493,0.2003,4424.7,4424.6,3.9451]
[1757587232398,0.228,4424.8,4424.7,0.2944]
[1757587232695,0.228,4424.8,4424.7,0.7001]
[1757587233499,3.7104,4425.4,4425.3,0.7001]
[1757587233688,3.6425,4425.4,4425.3,0.7001]
[1757587233892,3.4145,4425.4,4425.3,0.7001]
[1757587234199,0.2067,4425.4,4425.3,0.7001]
[1757587235694,0.4008,4425.4,4425.3,0.7001]
[1757587235894,0.6967,4425.4,4425.3,0.7001]
[1757587236500,0.6967,4425.4,4425.1,3.5022]
[1757587236501,0.2959,4425.3,4425.1,3.5022]
[1757587236800,0.6967,4425.2,4424.8,0.2944]
[1757587237002,0.1189,4425.0,4424.8,0.2944]
[1757587237197,0.6967,4424.9,4424.8,0.491]
[1757587237599,0.6967,4424.9,4424.8,0.7001]
[1757587239001,0.6967,4424.7,4424.6,0.491]
[1757587240000,0.6967,4424.7,4424.1,3.2078]
[1757587240308,0.2067,4424.3,4424.2,0.4057]
[1757587240507,0.5026,4424.3,4424.2,0.7001]
[1757587240806,0.6967,4424.3,4424.2,0.7001]
[1757587241807,0.2067,4424.3,4424.2,0.7001]
[1757587242006,0.4347,4424.7,4424.6,0.7001]
[1757587246901,0.7306,4424.7,4424.6,0.7001]
[1757587249410,0.4347,4424.7,4424.6,0.7001]
[1757587249611,0.228,4425.0,4424.9,0.4057]
[1757587249806,0.228,4425.0,4424.9,0.7001]
[1757587250011,0.7306,4425.0,4424.9,0.7001]
[1757587250309,1.0436,4425.0,4424.6,3.2078]
[1757587250504,0.6967,4424.8,4424.7,0.2944]
[1757587250910,0.6967,4424.8,4424.7,0.491]
[1757587252504,0.6967,4424.8,4424.7,0.7001]
[1757587253412,0.4008,4424.8,4424.7,0.7001]
[1757587253611,0.2067,4424.8,4424.7,0.7001]
[1757587253911,0.228,4425.0,4424.8,0.2944]
[1757587254113,0.5026,4425.1,4425.0,0.4057]
[1757587254412,1.08627575,4425.1,4425.0,0.8216]
[1757587254813,1.28037575,4425.1,4425.0,0.8216]
[1757587255418,0.6967,4425.1,4425.0,0.8216]
[1757587256418,0.6967,4425.1,4425.0,0.7001]
[1757587258420,0.5026,4425.1,4425.0,0.7001]
[1757587258623,0.6992,4425.1,4425.0,0.7001]
[1757587259122,0.6992,4425.1,4425.0,0.491]
[1757587260220,0.4297,4425.0,4424.7,0.3035]
[1757587260422,0.7016,4424.8,4424.7,0.3035]
[1757587260622,0.7016,4424.8,4424.7,0.5048]
[1757587261317,0.7016,4424.8,4424.6,3.2078]
[1757587261318,0.3925,4424.8,4424.6,3.2078]
[1757587261620,0.7016,4424.5,4424.4,0.3035]
[1757587261821,0.7016,4424.5,4424.4,0.5048]
[1757587262021,0.8222,4424.5,4424.4,0.5048]
[1757587263121,0.7016,4424.5,4424.4,0.5048]
[1757587264429,0.7016,4424.5,4424.4,0.7069]
[1757587264821,3.3284,4425.0,4424.4,0.7069]
[1757587264822,0.1959,4425.0,4424.9,0.7069]
[1757587265028,4.2563,4425.5,4425.4,0.5048]
[1757587265224,4.8401118,4425.5,4425.4,0.5048]
[1757587271333,1.51379105,4425.5,4425.4,0.7069]
[1757587274434,0.9296,4425.5,4425.4,0.7069]
[1757587274635,0.733,4425.5,4425.4,0.7069]
[1757587274936,3.2078,4427.1,4426.4,0.7069]
[1757587275138,0.1959,4426.7,4426.6,0.7069]
[1757587275330,0.3925,4426.7,4426.6,0.7069]
[1757587276333,0.3925,4426.7,4426.6,0.3035]
[1757587277040,0.6543,4426.7,4426.6,0.3035]
[1757587278237,0.6543,4426.3,4426.2,0.3035]
[1757587278438,0.8813,4426.3,4426.0,0.3035]
[1757587278631,0.8813,4426.3,4425.6,3.2078]
[1757587278632,0.8813,4426.3,4425.7,0.3035]
[1757587281344,0.6543,4425.8,4425.7,0.3035]
[1757587281640,0.3925,4425.1,4425.0,0.8273]
[1757587281942,0.4239,4425.1,4425.0,0.8273]
[1757587282837,0.8823,4425.1,4425.0,0.8273]
[1757587283041,0.8823,4425.1,4425.0,0.3035]
[1757587283836,0.8823,4425.1,4424.5,3.3282]
[1757587283837,0.2618,4425.0,4424.5,3.3282]
[1757587284028,0.6543,4424.7,4424.6,0.3035]
[1757587284339,0.8823,4424.7,4424.6,0.3035]
[1757587285237,0.8823,4424.7,4424.6,0.5048]
[1757587285439,0.8823,4424.7,4424.0,3.3282]
[1757587285638,0.8823,4424.7,4424.1,0.3035]
[1757587286642,0.8823,4424.7,4424.6,0.2013]
[1757587286844,0.8823,4424.7,4424.6,0.5048]
[1757587287951,0.8823,4424.7,4424.6,0.3035]
[1757587289347,0.8823,4424.7,4424.0,3.3282]
[1757587289543,0.2148,4424.2,4424.1,0.7208]
[1757587294749,0.228,4424.4,4424.1,0.4199]
[1757587294948,0.228,4424.4,4424.3,0.4199]
[1757587295149,0.228,4424.4,4424.3,0.7208]
[1757587296947,0.4428,4424.4,4424.3,0.7208]
[1757587297447,0.6535,4424.4,4424.3,0.7208]
[1757587297637,0.9158,4424.4,4424.0,3.3282]
[1757587297833,0.9158,4424.4,4423.5,0.1204]
[1757587297834,0.6878,4423.6,4423.5,0.334]
[1757587298142,0.6878,4423.6,4423.0,3.3282]
[1757587298345,0.6878,4423.6,4423.1,0.3009]
[1757587298540,0.2148,4423.2,4423.1,0.7208]
[1757587298740,0.4255,4423.2,4423.1,0.7208]
[1757587299643,0.6878,4423.2,4423.1,0.5145]
[1757587299841,0.6535,4423.2,4423.0,0.3009]
[1757587300149,0.6878,4423.1,4423.0,0.3009]
[1757587300648,0.6878,4422.7,4422.6,0.5145]
[1757587302049,0.4255,4422.7,4422.6,0.7208]
[1757587302249,0.228,4422.8,4422.7,0.3009]
[1757587302449,0.4428,4422.8,4422.7,0.7208]
[1757587302750,0.6535,4422.8,4422.7,0.7208]
[1757587305649,0.9158,4422.8,4422.7,0.5145]
[1757587306343,0.9158,4422.8,4422.7,0.7208]
[1757587306344,0.6535,4422.8,4422.7,0.7208]
[1757587310252,0.228,4422.8,4422.7,0.7208]
[1757587310554,3.4226,4423.5,4423.4,0.7208]
[1757587310750,3.8956,4423.5,4423.0,0.122]
[1757587310950,3.8956,4423.5,4423.1,0.3009]
[1757587310951,0.4255,4423.2,4423.1,0.3009]
[1757587311259,0.6878,4423.2,4423.1,0.3009]
[1757587311859,0.4255,4423.2,4422.6,0.3009]
[1757587312061,0.6878,4422.7,4422.6,0.5145]
[1757587312954,0.4255,4422.7,4422.6,0.7208]
[1757587316151,0.228,4423.1,4423.0,0.122]
[1757587316152,0.4428,4423.1,4423.0,0.122]
[1757587316361,0.6535,4423.1,4423.0,0.6365]
[1757587316657,0.9158,4423.1,4423.0,0.6365]
[1757587318661,0.9158,4423.1,4423.0,0.5145]
[1757587319057,0.9158,4423.1,4423.0,0.6321]
[1757587320156,0.6535,4423.1,4423.0,0.8258]
[1757587322462,3.2078,4423.5,4423.0,0.8258]
[1757587322660,0.81152117,4423.4,4423.3,0.6949]
[1757587322962,1.23322117,4423.4,4423.3,0.6949]
[1757587323757,1.49542117,4423.4,4423.3,0.6949]
[1757587328759,0.58352117,4423.4,4423.3,0.6949]
[1757587328964,0.81152117,4423.4,4423.3,0.6949]
[1757587329572,1.02132117,4423.4,4423.3,0.6949]
[1757587329763,1.49542117,4423.4,4423.3,0.3074]
[1757587330067,1.49542117,4423.4,4423.0,0.1176]
[1757587330369,0.6839,4423.2,4423.1,0.3074]
[1757587330569,1.26742117,4423.2,4423.1,0.3074]
[1757587332662,1.00522117,4423.2,4422.6,0.3074]
[1757587332864,0.2098,4422.7,4422.6,0.6949]
[1757587333063,0.4378,4422.7,4422.6,0.6949]
[1757587333965,0.228,4422.7,4422.6,0.6949]
[1757587334162,3.4176,4423.5,4423.4,0.6949]
[1757587334363,4.23094451,4423.5,4423.4,0.6949]
[1757587335473,4.44284451,4423.5,4423.4,0.6949]
[1757587336269,0.4217,4423.1,4423.0,0.3114]
[1757587336474,0.9119,4423.1,4423.0,0.3114]
[1757587336971,0.9119,4423.1,4423.0,0.6188]
[1757587338675,0.6497,4423.1,4423.0,0.8125]
[1757587339074,0.4378,4423.1,4423.0,0.8125]
[1757587339276,0.2098,4423.1,4423.0,0.8125]
[1757587339479,0.228,4423.1,4423.0,0.8125]
[1757587346075,3.2078,4423.5,4423.1,0.3074]
[1757587346274,0.228,4423.2,4423.1,0.6949]
[1757587349280,0.228,4423.4,4423.1,3.5953]
[1757587349575,0.228,4423.5,4423.4,0.7012]
[1757587349880,0.228,4424.0,4423.9,0.4082]
[1757587350075,0.228,4424.0,4423.9,0.7012]
[1757587353081,32.555,4424.2,4424.0,0.4101]
[1757587353283,32.555,4424.2,4424.1,0.7012]